[Event "ChessKid Cup Div-II 2023"]
[Site "Online"]
[Date "2023.05.25"]
[Round "4.4"]
[White "Fedoseev, Vladimir"]
[Black "Nguyen, Ngoc Truong Son"]
[Result "1-0"]
[ECO "E67"]
[WhiteElo "2680"]
[BlackElo "2645"]
[Annotator "TA"]
[PlyCount "79"]
[EventDate "2023.05.21"]
[EventType "k.o."]
[EventCountry "NET"]
[SourceTitle "playchess.com"]
[Source "ChessBase"]
[SourceQuality "1"]
[TimeControl "900+3"]

{[%evp 18,79,23,0,94,95,105,78,83,84,106,103,110,106,111,100,104,83,93,45,89,91,96,91,158,105,115,104,111,85,85,85,84,56,135,133,137,118,128,123,151,155,155,154,151,147,139,146,160,13,44,38,320,320,320,320,370,363,363,344,419,327,312,306]} 1. d4 {[%emt 0:00:09]} Nf6 {[%emt 0:00:07]} 2. c4 {[%emt 0:00:02]} g6 {[%emt 0:00:06]} 3. g3 {[%emt 0:00:06]} Bg7 {[%emt 0:00:03]} 4. Bg2 {[%emt 0:00:01]} O-O {[%emt 0:00:05]} 5. Nc3 {[%emt 0:00:07]} d6 {[%emt 0:00:02]} 6. Nf3 {[%emt 0:00:03]} Nbd7 {[%emt 0:00:16]} 7. O-O {[%emt 0:00:12]} e5 {[%emt 0:00:05]} 8. Qc2 {[%emt 0:00:22]} Re8 {[%emt 0:00:11]} 9. Rd1 {[%emt 0:00:04]} c6 {[%emt 0:00:47]} 10. d5 {[%emt 0:01:19]} c5 {[%emt 0:00:38] E67: King's Indian: Fianchetto: 6...Nbd7.} (10... cxd5 $11 11. cxd5 (11. Nxd5 Nxd5 12. cxd5 Nc5 $11) 11... Nc5) 11. e4 $16 {[%emt 0:00:12] [#]} h6 $146 {[%emt 0:00:07]} ({Predecessor:} 11... a6 12. Rb1 Rf8 13. a3 h6 14. b4 Qc7 15. bxc5 Nxc5 16. Be3 Bd7 17. h3 Rfc8 18. Rdc1 {1-0 McNab,C (2438)-Lapidus,M (2221) SCO-ch 123rd 2016 (5)}) 12. h3 {[%emt 0:00:23]} Nh7 {[%emt 0:00:11] White is better.} 13. Be3 {[%emt 0:00:08]} Ndf8 {[%emt 0:00:08]} 14. Qd2 {[%emt 0:00:13]} h5 {[%emt 0:00:13]} 15. Rab1 {[%emt 0:00:21]} f5 {[%emt 0:00:18]} 16. b4 {[%emt 0:00:12]} b6 {[%emt 0:01:32]} 17. bxc5 {[%emt 0:00:06]} (17. a3 {simplifies} h4 18. Re1 hxg3 19. fxg3 Nf6 20. exf5 gxf5 21. Bg5) 17... bxc5 {[%emt 0:00:03]} 18. Bh6 {[%emt 0:00:02]} (18. Rb3 $16) 18... fxe4 {[%emt 0:01:48]} 19. Nxe4 {[%emt 0:00:05]} Bf5 {[%emt 0:00:04]} 20. Nh4 {[%emt 0:00:59] Bxg7 is the strong threat.} Qe7 {[%emt 0:03:04]} (20... Bxe4 $142 21. Bxe4 Bxh6 {[%mdl 64] Remove Defender} 22. Qxh6 Qg5 23. Qxg5 Nxg5 24. Bxg6 Nxg6 25. Nxg6 Kg7) 21. Rb3 {[%emt 0:01:00]} (21. Bxg7 $142 Kxg7 22. Nxf5+ gxf5 23. Nxc5 (23. Nc3 h4 $14)) 21... Rad8 {[%emt 0:00:39]} 22. Rdb1 {[%emt 0:00:23] White has more active pieces. The black rooks are badly placed.} (22. Be3 {simplifies} Nf6 23. Nxf5 gxf5 24. Ng5) 22... Rd7 {[%emt 0:01:57]} 23. Rb8 {[%emt 0:00:14]} Rxb8 {[%emt 0:00:17]} 24. Rxb8 {[%emt 0:00:04]} Rd8 {[%emt 0:00:01]} 25. Rb3 {[%emt 0:00:16]} Qc7 {[%emt 0:02:37]} ({Black should play} 25... Bxe4 $14 26. Bxe4 Bxh6 27. Qxh6 Qg5 28. Qxg5 Nxg5 29. Bxg6 Nxg6 30. Nxg6 Kf7) 26. Be3 $36 {[%emt 0:01:53][%mdl 2048] White is in control.} Rb8 {[%emt 0:00:06]} 27. Nc3 {[%emt 0:00:36] aiming for Nb5.} Rxb3 {[%emt 0:00:10]} 28. axb3 {[%emt 0:00:00]} Qb6 {[%emt 0:00:09]} 29. Nxf5 {[%emt 0:01:06]} gxf5 {[%emt 0:00:02]} 30. Qc2 {[%emt 0:00:01]} e4 {[%emt 0:00:01] [#]} 31. g4 $1 {[%emt 0:00:34][%mdl 512]} hxg4 {[%emt 0:00:03]} 32. hxg4 {[%emt 0:00:02]} Qa5 {[%emt 0:00:02] [#]} 33. Nb5 {[%emt 0:00:57]} (33. Nd1 $1 $16) 33... Qa1+ $1 $11 {[%emt 0:00:29]} (33... Qe1+ $2 34. Bf1 $18) 34. Qc1 {[%emt 0:00:03] Qxa1 would be deadly.} Qxc1+ {[%emt 0:00:15][%mdl 8192] This costs Black the game.} (34... Qf6 $1 $14) 35. Bxc1 $18 {[%emt 0:00:02]} Be5 {[%emt 0:00:03]} 36. gxf5 {[%emt 0:00:08]} ({Don't do} 36. Nxa7 fxg4 37. Bxe4 Nf6 $18) 36... Nf6 {[%emt 0:00:01]} 37. Nxa7 {[%emt 0:00:03]} N8d7 {[%emt 0:00:06]} 38. Nc6 {[%emt 0:00:02]} Kf7 {[%emt 0:00:01]} 39. Kf1 {[%emt 0:00:03]} Bh2 {[%emt 0:00:03]} 40. Ke2 {[%emt 0:00:06] Weighted Error Value: White=0.21 (precise) /Black=0.28 (precise)} 1-0

[Event "ChessKid Cup Div-II 2023"]
[Site "Online"]
[Date "2023.05.26"]
[Round "5.1"]
[White "Fedoseev, Vladimir"]
[Black "Mamedyarov, Shakhriyar"]
[Result "1/2-1/2"]
[ECO "D02"]
[WhiteElo "2680"]
[BlackElo "2738"]
[Annotator "TA"]
[PlyCount "90"]
[EventDate "2023.05.21"]
[EventType "k.o."]
[EventCountry "NET"]
[SourceTitle "playchess.com"]
[Source "ChessBase"]
[SourceQuality "1"]
[TimeControl "900+3"]

{[%evp 9,90,14,13,12,11,0,0,0,8,0,10,0,0,0,0,0,0,5,22,19,20,23,14,16,32,28,38,12,19,12,12,25,25,14,11,14,15,14,30,11,27,35,29,36,36,35,39,8,8,8,16,16,18,20,16,16,14,15,15,15,15,1,1,1,1,1,1,1,1,1,9,9,15,15,16,16,16,16,16,16,16,16,16]} 1. Nf3 {[%emt 0:00:06]} d5 {[%emt 0:00:07]} 2. d4 {[%emt 0:00:02]} Nf6 {[%emt 0:00:02]} 3. Bf4 {[%emt 0:00:02]} Bf5 {[%emt 0:00:02]} 4. e3 {[%emt 0:00:04]} e6 {[%emt 0:00:03]} 5. c4 {[%emt 0:00:02]} Bd6 {[%emt 0:00:01]} 6. Bxd6 {[%emt 0:00:09] D02: 1 d4 d5 2 Nf3 sidelines, including 2...Nf6 3 g3 and 2...Nf6 3 Bf4.} cxd6 {[%emt 0:00:00]} 7. cxd5 {[%emt 0:00:02]} Nxd5 {[%emt 0:00:04]} 8. Nbd2 {[%emt 0:00:01] [#] Hoping for e4.} Bg6 {[%emt 0:00:02]} 9. Bc4 {[%emt 0:00:08]} Nb6 {[%emt 0:00:33] [#]} 10. Bb5+ $146 {[%emt 0:00:04]} ({Predecessor:} 10. Qb3 O-O 11. Bb5 a6 12. Be2 h6 13. Rc1 Nc6 14. O-O Nd5 15. Rfd1 f5 16. Ne1 {½-½ Baumann,W (1987)-Liutaia,L (1969) W-ch WS/H/764 email 2020}) 10... N8d7 {[%emt 0:00:03][%cal Bb8d7,Bd7f6,Bf6e4][%mdl 32]} 11. Qb3 {[%emt 0:00:05]} O-O {[%emt 0:00:04]} 12. O-O {[%emt 0:00:04]} Nf6 {[%emt 0:01:57]} 13. Rfc1 {[%emt 0:01:23]} Ne4 {[%emt 0:00:28]} 14. a4 {[%emt 0:00:40][%cal Ba2a4,Ba4a5][%mdl 32]} Rc8 {[%emt 0:00:43]} 15. a5 {[%emt 0:01:16]} Rxc1+ {[%emt 0:01:00]} 16. Rxc1 {[%emt 0:00:04] Black must now prevent Nxe4.} Nd5 {[%emt 0:00:01][%cal Bb6d5,Bd5f6,Bf6e4][%mdl 32]} 17. Qa3 {[%emt 0:00:24]} Ndf6 {[%emt 0:01:13]} 18. h3 {[%emt 0:00:24]} h6 {[%emt 0:00:03]} 19. Nxe4 {[%emt 0:00:24]} Nxe4 {[%emt 0:00:03]} 20. Bd3 {[%emt 0:00:51]} Qb8 {[%emt 0:00:10]} 21. d5 {[%emt 0:02:29]} exd5 {[%emt 0:01:33]} 22. Nd4 {[%emt 0:01:34]} Rc8 {[%emt 0:02:07]} 23. Rd1 {[%emt 0:00:03]} Qc7 {[%emt 0:00:55]} 24. Nb5 {[%emt 0:00:21]} (24. Bxe4 {simplifies} dxe4 25. Ne2 Qe7 26. Rxd6 Rc4 27. a6) 24... Qd8 {[%emt 0:00:51]} (24... Qe7 {simplifies} 25. Bxe4 Bxe4 26. Nxd6 Rc7) 25. Bxe4 {[%emt 0:00:45]} Bxe4 {[%emt 0:00:11]} 26. Nxd6 {[%emt 0:00:14]} Qg5 $1 {[%emt 0:00:22][%csl Ge4][%cal Rg5g2]} 27. Nxe4 {[%emt 0:00:01]} dxe4 $14 {[%emt 0:00:00][%mdl 4096] Endgame KQR-KQR} 28. Qb3 {[%emt 0:01:31]} Qe7 {[%emt 0:00:33] The position is equal.} 29. g3 {[%emt 0:00:13]} Rc5 {[%emt 0:00:13]} 30. Qb4 {[%emt 0:00:13]} Re5 {[%emt 0:00:26]} 31. Qxe7 {[%emt 0:00:03]} Rxe7 $11 {[%emt 0:00:01] KR-KR} 32. Rd5 {[%emt 0:00:04]} g6 {[%emt 0:00:09]} 33. g4 {[%emt 0:00:03]} Kg7 {[%emt 0:00:05]} 34. Kg2 {[%emt 0:00:12]} Kf6 {[%emt 0:00:01]} 35. Kg3 {[%emt 0:00:19]} Re5 {[%emt 0:00:06]} 36. Rd7 {[%emt 0:00:19]} Rb5 {[%emt 0:00:04] [#]} 37. a6 $1 {[%emt 0:00:03]} bxa6 {[%emt 0:00:03]} 38. Rd6+ {[%emt 0:00:01]} Kg7 {[%emt 0:00:16]} 39. Rxa6 {[%emt 0:00:02]} Rxb2 {[%emt 0:00:17]} 40. Rxa7 {[%emt 0:00:01]} Rb4 {[%emt 0:00:28]} 41. h4 {[%emt 0:00:12]} g5 {[%emt 0:00:09]} 42. h5 {[%emt 0:00:03]} Rc4 {[%emt 0:00:05]} 43. Rd7 {[%emt 0:00:12]} Rb4 {[%emt 0:00:03]} 44. Rd6 {[%emt 0:00:02]} Ra4 {[%emt 0:00:02]} 45. Kg2 {[%emt 0:00:08]} Rb4 {[%emt 0:00:01] Weighted Error Value: White=0.03 (flawless) /Black=0.03 (flawless)} 1/2-1/2

[Event "ChessKid Cup Div-II 2023"]
[Site "Online"]
[Date "2023.05.26"]
[Round "5.2"]
[White "Mamedyarov, Shakhriyar"]
[Black "Fedoseev, Vladimir"]
[Result "1-0"]
[ECO "D37"]
[WhiteElo "2738"]
[BlackElo "2680"]
[Annotator "TA"]
[PlyCount "149"]
[EventDate "2023.05.21"]
[EventType "k.o."]
[EventCountry "NET"]
[SourceTitle "playchess.com"]
[Source "ChessBase"]
[SourceQuality "1"]
[TimeControl "900+3"]

{[%evp 9,149,12,30,20,30,16,16,14,14,0,20,0,34,20,35,35,31,39,41,30,47,45,62,41,44,41,46,69,61,53,64,55,77,76,132,139,132,112,179,122,121,107,113,118,204,200,196,193,236,110,110,118,127,115,122,125,133,119,159,159,149,118,202,197,248,222,217,205,205,129,129,129,135,135,125,125,145,157,158,123,131,125,140,131,152,160,190,188,295,130,203,66,95,33,66,23,28,0,0,0,0,0,65,65,66,34,79,79,79,79,62,0,204,52,295,295,287,93,85,14,14,14,14,16,612,0,606,0,592,587,29977,29978,29978,29979,29979,29980,29986,29987,29987,29985,29991,29992]} 1. d4 {[%emt 0:00:03]} d5 {[%emt 0:00:18]} 2. c4 {[%emt 0:00:03]} e6 {[%emt 0:00:01]} 3. Nf3 {[%emt 0:00:06]} Nf6 {[%emt 0:00:02]} 4. Nc3 {[%emt 0:00:05]} Nbd7 {[%emt 0:00:03]} 5. Bf4 {[%emt 0:00:04]} dxc4 {[%emt 0:00:03]} 6. e3 {[%emt 0:00:02] D37: Queen's Gambit Declined: 5 Bf4.} Bd6 {[%emt 0:00:01] now supersedes 6...Nd5.} 7. Bxc4 {[%emt 0:00:26]} Bxf4 {[%emt 0:00:05]} 8. exf4 {[%emt 0:00:01] The position is equal.} Nb6 {[%emt 0:00:11]} 9. Bb3 {[%emt 0:00:53]} O-O {[%emt 0:00:10]} 10. O-O {[%emt 0:00:03] [#]} Bd7 $146 {[%emt 0:00:14]} ({Predecessor:} 10... Nbd5 11. Qd2 b6 12. Rac1 Bb7 13. Rfd1 Nxc3 14. Qxc3 Rc8 15. Ne5 Qe7 16. Qh3 c5 17. dxc5 Rxc5 18. Rxc5 Qxc5 19. Bxe6 fxe6 20. Qxe6+ {½-½ Majek,K (2083)-Liberadzki,S (1955) Warsaw YMCA Autumn-A 205th 2018 (6)}) 11. Ne5 {[%emt 0:00:07]} Bc6 {[%emt 0:00:49]} 12. Nxc6 {[%emt 0:00:02]} bxc6 {[%emt 0:00:03]} 13. g3 {[%emt 0:00:09]} Qd6 {[%emt 0:00:05]} 14. Qf3 {[%emt 0:00:08]} a5 {[%emt 0:00:02]} 15. a3 {[%emt 0:00:35]} a4 {[%emt 0:00:19]} 16. Ba2 {[%emt 0:00:02]} Rfb8 {[%emt 0:01:52]} 17. Rac1 {[%emt 0:00:14][%cal Ba1c1,Bc1c2,Bc2d2][%mdl 32]} Nbd7 {[%emt 0:00:29]} (17... Qxd4 $2 18. Rfd1 Qc5 19. Nd5 $18) 18. Rc2 {[%emt 0:00:15]} Qxd4 {[%emt 0:01:40]} 19. Qxc6 {[%emt 0:00:20]} Qc5 {[%emt 0:00:01]} 20. Qf3 {[%emt 0:00:55]} Qf5 {[%emt 0:01:00]} 21. Rd2 {[%emt 0:01:28]} h5 {[%emt 0:01:40]} (21... Qc5 $142) 22. Rfd1 $16 {[%emt 0:00:17]} Nb6 {[%emt 0:00:04]} 23. Bb1 {[%emt 0:00:30] White is more active.} Qg4 {[%emt 0:00:52]} (23... Qh3 $16 {might work better.}) 24. Qc6 {[%emt 0:01:07]} (24. Qg2 $1 $18 h4 25. h3) 24... Nbd5 {[%emt 0:00:04]} 25. Nxd5 {[%emt 0:00:22]} (25. Nxa4 h4 $14) 25... exd5 {[%emt 0:00:22]} 26. Ba2 {[%emt 0:00:23]} Ne4 {[%emt 0:00:28]} (26... Rd8 $16) 27. Rxd5 $18 {[%emt 0:01:49] Threatens to win with Re1.} Qe2 {[%emt 0:00:04] Against Re1} 28. Rf1 {[%emt 0:01:32]} Nf6 {[%emt 0:02:29]} 29. Bc4 {[%emt 0:01:22]} (29. Re5 Qxb2 30. Bc4 Qxa3 $16) (29. Rg5 $1 $18 Qe7 30. Rc1) 29... Qxb2 $16 {[%emt 0:00:14]} 30. Rb5 {[%emt 0:00:05]} Rxb5 {[%emt 0:00:54]} 31. Qxa8+ {[%emt 0:00:01]} Rb8 {[%emt 0:00:01]} 32. Qxa4 {[%emt 0:00:01]} h4 {[%emt 0:00:41]} 33. Qa5 $36 {[%emt 0:00:05][%mdl 2048] White has strong initiative.} hxg3 {[%emt 0:00:13]} 34. hxg3 {[%emt 0:00:02]} (34. Qxc7 gxf2+ 35. Rxf2 Qb1+ 36. Bf1 (36. Rf1 Qg6+ 37. Kh1 Qe4+ 38. Kg1 Qe3+ 39. Kh1 Qe4+ 40. Kg1 Rf8 $15) 36... Ra8 $11) 34... Qb6 {[%emt 0:00:19]} 35. Qc3 {[%emt 0:00:08]} Ra8 {[%emt 0:00:05]} (35... Ne4 $16 36. Qe5 (36. Bxf7+ Kf8 $16) 36... Nxg3) 36. Bb3 $18 {[%emt 0:00:13]} Ne8 {[%emt 0:00:21]} (36... Rf8 $142 37. Re1 Ng4) 37. a4 {[%emt 0:00:16]} Nd6 {[%emt 0:00:03]} 38. Re1 {[%emt 0:00:23]} Qa5 {[%emt 0:00:10]} 39. Qxa5 {[%emt 0:00:22]} Rxa5 {[%emt 0:00:01][%mdl 4096] Endgame KRB-KRN} 40. Re5 {[%emt 0:00:01]} Ra7 {[%emt 0:00:09]} 41. Kf1 {[%emt 0:00:11]} Kf8 {[%emt 0:00:01]} 42. Ke2 {[%emt 0:00:02]} Rb7 {[%emt 0:00:08]} 43. Bc2 {[%emt 0:00:11]} f6 {[%emt 0:00:01]} 44. Rc5 {[%emt 0:00:24]} Ke7 {[%emt 0:00:02]} 45. Kd3 {[%emt 0:00:02]} Ra7 {[%emt 0:00:01]} 46. Kc3 {[%emt 0:00:04]} Kd7 {[%emt 0:00:04]} 47. Rh5 {[%emt 0:00:02]} c6 {[%emt 0:00:08]} 48. Rh7 $1 {[%emt 0:00:16]} Ke6 {[%emt 0:00:01]} (48... Ne8 {was worth a try.} 49. Kc4 c5) 49. g4 {[%emt 0:00:01]} (49. Bb3+ $1 $18 {is the precise move to win.} Kf5 50. f3) 49... c5 {[%emt 0:00:06]} (49... Re7 $16 50. Rh3 Rc7 51. Bb3+ Kd7) 50. Rh1 {[%emt 0:00:08]} (50. Bb3+ $1 $18 c4 51. Bc2 (51. Bxc4+ Nxc4 52. Kxc4 Rxa4+ 53. Kd3 Rxf4 $11)) 50... Kd5 $14 {[%emt 0:00:01]} 51. Rh5+ {[%emt 0:00:15]} (51. Rd1+ $16 Kc6 52. f3) 51... Kc6 {[%emt 0:00:01]} 52. Rh3 {[%emt 0:00:09]} Rb7 {[%emt 0:00:03]} 53. Rh7 {[%emt 0:00:05]} Rb4 {[%emt 0:00:04]} 54. g5 {[%emt 0:00:10][%cal Bg4g5,Bg5g6,Bg6g7][%mdl 32]} Rxf4 {[%emt 0:00:04]} 55. g6 {[%emt 0:00:01]} Rxf2 {[%emt 0:00:03]} (55... Ne8 $11) 56. Rxg7 {[%emt 0:00:03][%cal Og7f7]} f5 {[%emt 0:00:02]} 57. Rg8 {[%emt 0:00:11]} Rf3+ {[%emt 0:00:04]} 58. Kd2 {[%emt 0:00:03] Black must now prevent g7.} Rg3 {[%emt 0:00:01]} 59. g7 {[%emt 0:00:10] Ke1 would be deadly.} Kb7 {[%emt 0:00:02]} 60. Ke2 {[%emt 0:00:07]} (60. a5 $14) 60... Ne4 $2 {[%emt 0:00:03]} (60... Nc8 $1 $11 {and Black has nothing to worry.}) 61. Bd3 $2 {[%emt 0:00:10]} (61. Bxe4+ fxe4 62. Kf2 Rg4 $11) (61. Bb3 $1 $18 {[%cal Rb3d5]} Nc3+ 62. Kf2) 61... Ka7 $2 {[%emt 0:00:05]} ({Black should try} 61... Nc3+ $14 62. Kf1 (62. Kd2 Nxa4 63. Bxf5 Nb6 $11) 62... Rxd3 63. Rb8+ {[%mdl 64] Decoy} Kxb8 64. g8=Q+ (64. g8=R+ $2 Kb7 $19) 64... Ka7) 62. a5 $1 $18 {[%emt 0:00:01]} Nc3+ {[%emt 0:00:07]} 63. Kf2 $2 {[%emt 0:00:02]} (63. Kd2 $6 Ne4+ 64. Ke1 (64. Bxe4 fxe4 65. Ke1 e3 $11) 64... Rg1+ 65. Ke2 Nd6 $18) (63. Ke1 $18 {and White stays clearly on top.}) 63... f4 $16 {[%emt 0:00:00] [#]} 64. a6 {[%emt 0:00:08]} Nd1+ {[%emt 0:00:02]} (64... Rxd3 65. Ra8+ Kxa8 66. g8=Q+ (66. g8=R+ $2 {too greedy.} Ka7 $19) 66... Ka7 67. Qh7+ Kb6 68. Qxd3 Nb5 69. Qxb5+ Kxb5 70. a7) 65. Ke1 {[%emt 0:00:01] Chess con chili.} ({Don't do} 65. Ke2 Nc3+ 66. Kd2 Na4 $14) 65... Nc3 $1 {[%emt 0:00:02] Wards off Be4} (65... Rxd3 66. Ra8+ Kb6 67. g8=Q Ne3 68. Qg6+) 66. Kd2 {[%emt 0:00:01]} Nd5 $2 {[%emt 0:00:02][%mdl 8192]} (66... Na4 $11) 67. Be4 $2 {[%emt 0:00:01]} (67. Rd8 $18 {White threatens Rd7+ and mate.} Rxg7 68. Rxd5) 67... Ne7 $2 {[%emt 0:00:01][%mdl 8192]} (67... Nf6 $11 68. Ra8+ Kb6 69. Rb8+ Ka7 70. Ra8+ Kb6 71. Rb8+ Ka7 72. Ra8+) 68. Ra8+ $18 {[%emt 0:00:12]} Kb6 {[%emt 0:00:01] [#]} 69. Bd3 $1 {[%emt 0:00:04]} Rxg7 {[%emt 0:00:04]} 70. Rb8+ {[%emt 0:00:01] White mates.} Kc7 {[%emt 0:00:17]} 71. a7 {[%emt 0:00:01]} Rg2+ {[%emt 0:00:02]} 72. Be2 {[%emt 0:00:04]} f3 {[%emt 0:00:05]} 73. a8=Q {[%emt 0:00:02]} (73. a8=N+ {leads to mate.} Kxb8 74. Nb6 Rxe2+ 75. Kd3 Kc7 76. Nc4 Ng6 77. Nd2 Nf4+ 78. Kc2 Rxd2+ {[%mdl 64] Promotion} 79. Kxd2 f2 80. Kc3 f1=Q 81. Kc2 Qc4+ 82. Kd2 Qd3+ 83. Kc1 Qc3+ 84. Kd1 Qb2 85. Ke1 Qe2#) 73... Rxe2+ {[%emt 0:00:01]} 74. Kd1 {[%emt 0:00:00]} Nc6 {[%emt 0:00:03]} 75. Rc8+ {[%emt 0:00:02] Weighted Error Value: White=0.17 (very precise) /Black=0.23 (precise)} 1-0

[Event "ChessKid Cup Div-II 2023"]
[Site "Online"]
[Date "2023.05.26"]
[Round "5.3"]
[White "Fedoseev, Vladimir"]
[Black "Mamedyarov, Shakhriyar"]
[Result "1/2-1/2"]
[ECO "D00"]
[WhiteElo "2680"]
[BlackElo "2738"]
[Annotator "TA"]
[PlyCount "144"]
[EventDate "2023.05.21"]
[EventType "k.o."]
[EventCountry "NET"]
[SourceTitle "playchess.com"]
[Source "ChessBase"]
[SourceQuality "1"]
[TimeControl "900+3"]

{[%evp 9,144,10,30,18,26,24,22,5,39,29,25,20,23,13,18,24,21,27,4,12,7,10,14,0,0,0,0,0,0,0,0,0,0,0,0,0,0,-37,-10,-49,-47,-35,-28,-15,-18,-31,-27,-32,87,-6,26,0,0,0,0,0,0,0,13,8,24,13,17,0,0,0,0,0,0,0,0,0,0,-74,-72,-63,-60,-99,-21,-21,-21,-29,0,-13,0,0,0,0,0,0,0,0,0,0,0,0,0,-13,0,0,0,0,0,0,0,0,0,0,0,0,0,0,0,0,0,0,0,0,0,0,0,0,0,0,0,0,0,0,0,0,0,0,0,0,0,0,0]} 1. d4 {[%emt 0:00:07]} d5 {[%emt 0:00:06]} 2. Bf4 {[%emt 0:00:01]} Nf6 {[%emt 0:00:02]} 3. e3 {[%emt 0:00:01]} Bf5 {[%emt 0:00:02]} 4. c4 {[%emt 0:00:12]} e6 {[%emt 0:00:01]} 5. Qb3 {[%emt 0:00:01]} Nbd7 {[%emt 0:00:13]} 6. Nc3 {[%emt 0:00:08][%cal Rc4d5] D00: 1 d4 d5: Unusual lines.} dxc4 $1 {[%emt 0:00:08]} 7. Bxc4 {[%emt 0:00:05][%cal Oc3b5]} Nb6 {[%emt 0:00:02]} 8. Be2 {[%emt 0:01:24]} Bd6 {[%emt 0:00:04]} 9. Bg5 {[%emt 0:00:01][%cal Oe3e4,Bf4g5,Bg5h4,Bh4g3][%mdl 32] [#] e4! is the strong threat.} Be7 {[%emt 0:00:17]} 10. Nf3 {[%emt 0:00:17]} O-O {[%emt 0:00:09] [#]} 11. a4 $146 {[%emt 0:01:27]} ({Predecessor:} 11. O-O Rb8 12. Rfd1 h6 13. Bh4 c6 14. Rac1 Qd7 15. Ne5 Qd8 16. Bg3 Rc8 17. a4 a5 18. Nd3 Bxd3 19. Bxd3 Qd7 20. Qxb6 {1-0 Ivoskaite,D (2056)-Papler,P (1500) NATO-ch 20th 2009 (4)}) 11... a5 {[%emt 0:01:43]} 12. O-O {[%emt 0:00:06]} h6 {[%emt 0:00:28]} 13. Bh4 {[%emt 0:00:12]} Nfd5 {[%emt 0:01:25]} 14. Bg3 {[%emt 0:00:30]} Nb4 {[%emt 0:00:53]} 15. e4 {[%emt 0:00:06]} Bg4 {[%emt 0:00:43]} 16. Nb5 {[%emt 0:00:59]} Rc8 {[%emt 0:00:11]} 17. Rfd1 {[%emt 0:00:18]} c6 {[%emt 0:00:05]} 18. Nc3 {[%emt 0:00:31]} Bd6 {[%emt 0:01:53]} 19. Ne5 {[%emt 0:00:02]} Bxe2 {[%emt 0:00:05]} 20. Nxe2 {[%emt 0:00:00]} Qe7 {[%emt 0:00:12]} 21. Rac1 {[%emt 0:00:20]} Rfd8 {[%emt 0:00:06]} 22. Ng4 {[%emt 0:00:35]} Bxg3 {[%emt 0:00:37]} 23. hxg3 {[%emt 0:00:28]} c5 {[%emt 0:00:39]} 24. dxc5 {[%emt 0:02:02]} Rxd1+ {[%emt 0:00:05]} 25. Qxd1 {[%emt 0:00:01]} Nd7 {[%emt 0:00:03]} 26. Qd6 {[%emt 0:00:31]} Kf8 {[%emt 0:00:07]} 27. Qd4 {[%emt 0:00:47]} e5 {[%emt 0:00:56]} 28. Qd1 {[%emt 0:00:33]} Rxc5 {[%emt 0:00:18] [#]} (28... Nxc5 $15 {stays ahead.} 29. Nc3 Ncd3) 29. Nc3 {[%emt 0:00:20]} (29. Nxe5 $1 $16 Qxe5 30. Qxd7 Rxc1+ 31. Nxc1) 29... Nf6 {[%emt 0:00:34]} 30. Nxf6 {[%emt 0:00:54]} Qxf6 {[%emt 0:00:00]} 31. Qd7 {[%emt 0:00:10]} Qe7 {[%emt 0:00:25]} 32. Rd1 {[%emt 0:00:02]} b6 {[%emt 0:01:27]} 33. Qg4 {[%emt 0:01:10]} g6 {[%emt 0:00:12]} 34. Rd7 {[%emt 0:00:14]} Qf6 {[%emt 0:00:23]} 35. Qd1 {[%emt 0:00:01]} Rc6 $1 {[%emt 0:00:22] Inhibits Rd6.} 36. Qd2 {[%emt 0:00:03]} (36. Rd8+ {is more complex.} Kg7 37. Qd7 Qe6 38. Qb7) 36... Kg7 {[%emt 0:00:03]} 37. f4 {[%emt 0:00:02]} h5 {[%emt 0:00:18]} 38. Kh1 {[%emt 0:01:06]} Re6 {[%emt 0:00:40]} 39. Kg1 {[%emt 0:00:24]} Rc6 {[%emt 0:00:02]} 40. Kh1 {[%emt 0:00:06]} Re6 {[%emt 0:00:01]} 41. Nd5 {[%emt 0:00:07]} (41. Nb5 $11 {remains equal.} Re7 42. Rd6) 41... Nxd5 $17 {[%emt 0:00:03]} 42. exd5 {[%emt 0:00:00][%mdl 4096] Endgame KQR-KQR} Re8 {[%emt 0:00:13]} 43. Rc7 {[%emt 0:00:12]} h4 {[%emt 0:00:08]} ({Black should try} 43... exf4 $17 44. Rc6 Qf5 45. Qxf4 (45. gxf4 Qg4 $17) 45... Qxf4 46. gxf4 Re4 47. Rxb6 Rxa4) 44. Rc6 $11 {[%emt 0:00:04]} Qf5 {[%emt 0:00:01]} 45. gxh4 {[%emt 0:00:04]} (45. Rxb6 hxg3 46. Qe1 exf4) 45... exf4 {[%emt 0:00:09] ...f3 would be deadly.} (45... Rh8 $5 {[%cal Rh8h4]} 46. g3 Qh3+ 47. Qh2 Qf1+ 48. Qg1 Qf3+ 49. Kh2 (49. Qg2 Qd1+ 50. Kh2 exf4 $17) 49... Qxd5 $17) 46. Qd4+ {[%emt 0:00:10] The position is equal.} (46. Rxb6 Qg4 47. Qc3+ (47. Qxa5 Qxh4+ 48. Kg1 Re1+) 47... Kg8 $17) 46... Kg8 {[%emt 0:00:05]} 47. Rf6 {[%emt 0:00:11]} Re4 {[%emt 0:00:21]} 48. Rxf5 {[%emt 0:00:06]} (48. Qxb6 $2 {perishes.} Qe5 49. Qd6 (49. Qd8+ $2 Kg7 $19) 49... Qd4 $19) 48... Rxd4 {[%emt 0:00:01] KR-KR} 49. Rf6 {[%emt 0:00:01]} Rb4 {[%emt 0:00:09]} 50. d6 $1 {[%emt 0:00:03]} Rxa4 {[%emt 0:00:09][%cal Of4f3]} 51. d7 {[%emt 0:00:06]} Rd4 {[%emt 0:00:00]} 52. Rxb6 {[%emt 0:00:00] aiming for Rb8+.} Rxd7 {[%emt 0:00:01]} 53. Rb5 {[%emt 0:00:01] Prevents Rd5} Ra7 {[%emt 0:00:07]} 54. Kh2 {[%emt 0:00:02]} Kg7 {[%emt 0:00:01]} 55. Kh3 {[%emt 0:00:01]} f5 {[%emt 0:00:01]} 56. h5 {[%emt 0:00:03]} Kh6 {[%emt 0:00:09]} 57. hxg6 {[%emt 0:00:10]} Kxg6 {[%emt 0:00:00][%cal Ra7h7]} 58. Kh2 {[%emt 0:00:01]} Kg5 {[%emt 0:00:03]} 59. Kg1 {[%emt 0:00:00]} Kg4 {[%emt 0:00:01]} 60. Kf2 {[%emt 0:00:01]} Ra8 {[%emt 0:00:05]} 61. b3 {[%emt 0:00:04]} Rc8 {[%emt 0:00:11]} 62. Rxa5 {[%emt 0:00:10]} Rc2+ {[%emt 0:00:01]} 63. Kf1 {[%emt 0:00:01]} Kg3 {[%emt 0:00:04]} 64. Rxf5 {[%emt 0:00:01]} Rf2+ {[%emt 0:00:03]} (64... Rxg2 {is a self mate.} 65. Rg5+ Kf3 66. Rxg2 Ke4 67. b4 f3 68. Rc2 f2 69. b5) 65. Ke1 {[%emt 0:00:01] And now Rg5+ would win.} Rxg2 {[%emt 0:00:02]} 66. b4 {[%emt 0:00:06]} Rb2 {[%emt 0:00:03]} 67. Rg5+ {[%emt 0:00:03]} Kf3 {[%emt 0:00:01]} 68. b5 {[%emt 0:00:01]} Ke3 {[%emt 0:00:05][%cal Rb2b1]} 69. Re5+ {[%emt 0:00:02]} Kd4 {[%emt 0:00:00]} 70. Rg5 {[%emt 0:00:04]} Ke3 {[%emt 0:00:02][%cal Rb2b1]} 71. Re5+ {[%emt 0:00:01]} Kd4 {[%emt 0:00:01]} 72. Rg5 {[%emt 0:00:01]} Ke3 {[%emt 0:00:02] Weighted Error Value: White=0.08 (flawless) /Black=0.09 (flawless)} 1/2-1/2